fUSD/lending_fUSD_20250906
["ID","MTS","AMOUNT","RATE_DAILY","PERIOD"]
[383904954,1757171457767,-468.0,0.00035616,8]
[383904955,1757171457776,-1182.16,0.00035616,8]
[383904956,1757171457786,-400.0,0.00035616,8]
[383904957,1757171457796,-538.36,0.00035616,8]
[383904958,1757171457806,-400.0,0.00035616,8]
[383904959,1757171457816,-400.0,0.00035616,8]
[383904960,1757171457826,-404.25490468,0.00035616,8]
[383904961,1757171457836,-516.63,0.00035616,8]
[383904962,1757171457845,-615.32,0.00035616,8]
[383904963,1757171457855,-400.0,0.00035616,8]
[383904964,1757171457865,-400.0,0.00035616,8]
[383904965,1757171457875,-400.0,0.00035616,8]
[383904966,1757171457884,-412.98,0.00035616,8]
[383904967,1757171457893,-400.0,0.00035616,8]
[383904968,1757171457904,-400.0,0.00035616,8]
[383904969,1757171457913,-400.0,0.00035616,8]
[383904970,1757171457923,-400.0,0.00035616,8]
[383904971,1757171457932,-2132.96,0.00035616,8]
[383904972,1757171457942,-400.0,0.00035616,8]
[383904973,1757171457952,-400.0,0.00035616,8]
[383904974,1757171457962,-2499.57,0.00035616,8]
[383904975,1757171457971,-400.0,0.00035616,8]
[383904976,1757171457981,-400.0,0.00035616,8]
[383904977,1757171457991,-400.0,0.00035616,8]
[383904978,1757171458000,-400.0,0.00035616,8]
[383904979,1757171458009,-400.0,0.00035616,8]
[383904980,1757171458019,-482.21,0.00035616,8]
[383904981,1757171458029,-513.47380275,0.00035616,8]
[383904982,1757171458039,-400.0,0.00035616,8]
[383904983,1757171458049,-424.36,0.00035616,8]
[383904984,1757171458059,-439.47,0.00035616,8]
[383904985,1757171458070,-400.0,0.00035616,8]
[383904986,1757171458080,-400.0,0.00035616,8]
[383904987,1757171458090,-489.75,0.00035616,8]
[383904988,1757171458099,-2235.5,0.00035616,8]
[383904989,1757171458109,-400.0,0.00035616,8]
[383904990,1757171458119,-400.0,0.00035616,8]
[383904991,1757171458129,-400.0,0.00035616,8]
[383904992,1757171458138,-1000.0,0.00035616,8]
[383904993,1757171458148,-400.0,0.00035616,8]
[383904994,1757171458157,-402.30135585,0.00035616,8]
[383904995,1757171458166,-457.6,0.00035616,8]
[383904996,1757171458176,-400.0,0.00035616,8]
[383904997,1757171458185,-400.0,0.00035616,8]
[383904998,1757171458195,-1925.38,0.00035616,8]
[383904999,1757171458204,-2649.97,0.00035616,8]
[383905000,1757171458214,-400.0,0.00035616,8]
[383905001,1757171458224,-400.0,0.00035616,8]
[383905002,1757171458233,-400.0,0.00035616,8]
[383905003,1757171458243,-406.43135817,0.00035616,8]
[383905004,1757171458252,-501.4,0.00035616,8]
[383905005,1757171458262,-400.0,0.00035616,8]
[383905006,1757171458271,-2294.59,0.00035616,8]
[383905007,1757171458281,-402.54620299,0.00035616,8]
[383905008,1757171458290,-400.0,0.00035616,8]
[383905009,1757171458300,-400.0,0.00035616,8]
[383905010,1757171458309,-480.21554935,0.00035616,8]
[383905011,1757171458318,-438.01,0.00035616,8]
[383905012,1757171458327,-400.99713667,0.00035616,8]
[383905013,1757171458337,-400.0,0.00035616,2]
[383905014,1757171458346,-404.50928904,0.00035616,8]
[383905015,1757171458355,-407.14193772,0.00035616,8]
[383905016,1757171458364,-400.0,0.00035616,8]
[383905017,1757171458374,-400.0,0.00035616,8]
[383905018,1757171458383,-400.0,0.00035616,8]
[383905019,1757171458392,-400.0,0.00035616,8]
[383905020,1757171458402,-400.0,0.00035616,8]
[383905021,1757171458411,-400.0,0.00035616,8]
[383905022,1757171458421,-400.0,0.00035616,8]
[383905023,1757171458430,-400.0,0.00035616,8]
[383905024,1757171458440,-400.0,0.00035616,8]
[383905025,1757171458449,-400.0,0.00035616,8]
[383905026,1757171458460,-1226.94,0.00035616,8]
[383905027,1757171458469,-211.79139507,0.00035616,8]
[383905028,1757171458478,-400.0,0.00035616,8]
[383905029,1757171458488,-500.37,0.00035616,8]
[383905030,1757171458497,-400.0,0.00035616,8]
[383905031,1757171458506,-400.0,0.00035616,8]
[383905032,1757171458515,-402.54998552,0.00035616,8]
[383905033,1757171458524,-4561.62,0.00035616,8]
[383905034,1757171458537,-300.0,0.00035616,8]
[383905035,1757171458546,-576.06,0.00035616,8]
[383905036,1757171458556,-400.0,0.00035616,8]
[383905037,1757171458566,-400.0,0.00035616,8]
[383905038,1757171458576,-400.0,0.00035616,8]
[383905039,1757171458586,-400.0,0.00035616,8]
[383905040,1757171458596,-400.0,0.00035616,8]
[383905041,1757171458607,-2406.6,0.00035616,8]
[383905042,1757171458618,-400.0,0.00035616,8]
[383905043,1757171458628,-400.0,0.00035616,8]
[383905044,1757171458637,-627.71,0.00035616,8]
[383905045,1757171458647,-465.02,0.00035616,8]
[383905046,1757171458657,-400.0,0.00035616,8]
[383905047,1757171458666,-400.0,0.00035616,8]
[383905048,1757171458675,-400.0,0.00035616,8]
[383905049,1757171458685,-400.0,0.00035616,8]
[383905050,1757171458695,-400.0,0.00035616,8]
[383905051,1757171458705,-541.63,0.00035616,8]
[383905052,1757171458715,-400.0,0.00035616,8]
[383905053,1757171458725,-400.0,0.00035616,8]
[383905054,1757171458736,-400.0,0.00035616,8]
[383905055,1757171458746,-400.0,0.00035616,8]
[383905056,1757171458756,-500.0,0.00035616,8]
[383905057,1757171458766,-400.0,0.00035616,8]
[383905058,1757171458776,-507.55435424,0.00035616,8]
[383905059,1757171458786,-400.0,0.00035616,8]
[383905060,1757171458795,-562.57,0.00035616,8]
[383905061,1757171458805,-400.0,0.00035616,8]
[383905062,1757171458816,-400.26934062,0.00035616,8]
[383905063,1757171458826,-400.0,0.00035616,8]
[383905064,1757171458836,-500.0,0.00035673,5]
[383905065,1757171458846,-500.0,0.00035673,5]
[383905066,1757171458856,-500.0,0.00035673,5]
[383905067,1757171458866,-500.0,0.00035673,5]
[383905068,1757171458875,-500.0,0.00035673,5]
[383905069,1757171458885,-500.0,0.00035673,5]
[383905070,1757171458895,-367.46583261,0.00035673,5]
[383905071,1757171458905,-2026.67099948,0.0003569,2]
[383905072,1757171458915,-725.22,0.000357,14]
[383905073,1757171458925,-800.0,0.000357,13]
[383905074,1757171458935,-500.0,0.00035799,8]
[383905075,1757171458945,-500.0,0.00035799,8]
[383905076,1757171458955,-670.38,0.00035799,8]
[383905077,1757171458965,-509.49523899,0.00035799,8]
[383905078,1757171458975,-500.0,0.00035799,2]
[383905079,1757171458986,-500.0,0.00035799,8]
[383905080,1757171458996,-505.97973861,0.00035799,8]
[383905081,1757171459007,-1200.0,0.000358,13]
[383905082,1757171459015,-500.0,0.00035873,5]
[383905083,1757171459023,-500.0,0.00035873,5]
[383905084,1757171459033,-536.65523909,0.00035873,5]
[383905085,1757171459043,-500.0,0.00035873,5]
[383905086,1757171459053,-500.0,0.00035873,5]
[383905087,1757171459062,-500.0,0.00035873,5]
[383905088,1757171459074,-500.0,0.00035873,5]
[383905089,1757171459084,-500.0,0.00035873,5]
[383905090,1757171459094,-500.59975453,0.00035873,5]
[383905091,1757171459104,-500.0,0.00035873,5]
[383905092,1757171459114,-500.0,0.00035873,5]
[383905093,1757171459124,-2026.67099948,0.00035874,2]
[383905094,1757171459133,-500.0,0.0003588,8]
[383905095,1757171459143,-500.0,0.0003588,8]
[383905096,1757171459153,-670.38,0.0003588,8]
[383905097,1757171459163,-500.0,0.0003588,2]
[383905098,1757171459172,-500.0,0.0003588,8]
[383905099,1757171459183,-229.801574,0.00035887,14]
[383905100,1757171459193,-361.10404805,0.00035889,8]
[383905101,1757171459202,-500.0,0.00035889,8]
[383905102,1757171459212,-500.0,0.00035889,8]
[383905103,1757171459224,-500.0,0.00035889,8]
[383905104,1757171459234,-500.0,0.00035889,8]
[383905105,1757171459244,-670.38,0.00035889,8]
[383905106,1757171459253,-670.38,0.00035889,8]
[383905107,1757171459262,-500.0,0.00035889,2]
[383905108,1757171459272,-500.0,0.00035889,2]
[383905109,1757171459282,-500.0,0.00035889,8]
[383905110,1757171459291,-500.0,0.00035889,8]
[383905111,1757171459301,-400.0,0.0003589,2]
[383905112,1757171459311,-400.57234402,0.0003589,3]
[383905113,1757171459322,-400.0,0.0003589,8]
[383905114,1757171459331,-400.0,0.0003589,8]
[383905115,1757171459341,-400.0,0.0003589,8]
[383905116,1757171459350,-400.0,0.0003589,8]
[383905117,1757171459360,-403.21970773,0.0003589,8]
[383905118,1757171459369,-400.0,0.0003589,8]
[383905119,1757171459379,-400.0,0.0003589,8]
[383905120,1757171459389,-312.5821009,0.0003589,8]
[383905121,1757171459398,-402.11570372,0.0003589,8]
[383905122,1757171459408,-401.44096007,0.0003589,8]
[383905123,1757171459418,-401.1440272,0.0003589,8]
[383905124,1757171459427,-400.0,0.0003589,8]
[383905125,1757171459436,-400.0,0.0003589,8]
[383905126,1757171459446,-400.0,0.0003589,8]
[383905127,1757171459455,-331.86332394,0.0003589,8]
[383905128,1757171459465,-408.46172109,0.0003589,8]
[383905129,1757171459474,-405.2920364,0.0003589,8]
[383905130,1757171459484,-405.45841859,0.0003589,8]
[383905131,1757171459493,-400.0,0.0003589,8]
[383905132,1757171459503,-414.47325978,0.0003589,8]
[383905133,1757171459513,-400.0,0.0003589,8]
[383905134,1757171459522,-542.62032488,0.0003589,8]
[383905135,1757171459532,-400.0,0.0003589,8]
[383905136,1757171459542,-401.72924158,0.0003589,8]
[383905137,1757171459551,-400.0,0.0003589,8]
[383905138,1757171459561,-400.0,0.0003589,8]
[383905139,1757171459571,-400.0,0.0003589,8]
[383905140,1757171459582,-400.0,0.0003589,8]
[383905141,1757171459591,-400.0,0.0003589,8]
[383905142,1757171459601,-400.0,0.0003589,8]
[383905143,1757171459611,-400.0,0.0003589,8]
[383905144,1757171459620,-400.0,0.0003589,8]
[383905145,1757171459630,-250.01227704,0.0003589,8]
[383905146,1757171459639,-211.859912,0.0003589,8]
[383905147,1757171459648,-400.0,0.0003589,8]
[383905148,1757171459658,-271.87447,0.0003589,8]
[383905149,1757171459667,-400.0,0.0003589,8]
[383905150,1757171459677,-400.0,0.0003589,8]
[383905151,1757171459687,-400.0,0.0003589,8]
[383905152,1757171459697,-400.0,0.0003589,8]
[383905153,1757171459707,-400.0,0.0003589,8]
[383905154,1757171459717,-400.0,0.0003589,8]
[383905155,1757171459727,-400.0,0.0003589,8]
[383905156,1757171459739,-400.0,0.0003589,8]
[383905157,1757171459749,-400.0,0.0003589,8]
[383905158,1757171459758,-400.0,0.0003589,8]
[383905159,1757171459768,-313.393461,0.0003589,8]
[383905160,1757171459778,-400.0,0.0003589,8]
[383905161,1757171459787,-400.0,0.0003589,8]
[383905162,1757171459797,-400.0,0.0003589,8]
[383905163,1757171459806,-400.0,0.0003589,8]
[383905164,1757171459815,-400.0,0.0003589,8]
[383905165,1757171459825,-195.15557228,0.0003589,8]
[383905166,1757171459835,-400.0,0.0003589,8]
[383905167,1757171459845,-294.99704571,0.0003589,8]
[383905168,1757171459854,-400.0,0.0003589,8]
[383905169,1757171459864,-400.0,0.0003589,8]
[383905170,1757171459874,-400.0,0.0003589,8]
[383905171,1757171459883,-400.0,0.0003589,8]
[383905172,1757171459893,-548.97646646,0.0003589,8]
[383905173,1757171459902,-400.0,0.0003589,8]
[383905174,1757171459912,-400.0,0.0003589,8]
[383905175,1757171459921,-400.0,0.0003589,8]
[383905176,1757171459932,-400.0,0.0003589,8]
[383905177,1757171459941,-400.0,0.0003589,8]
[383905178,1757171459950,-453.94,0.0003589,8]
[383905179,1757171459960,-400.0,0.0003589,8]
[383905180,1757171459969,-400.0,0.0003589,8]
[383905181,1757171459979,-400.0,0.0003589,8]
[383905182,1757171459988,-659.2,0.0003589,8]
[383905183,1757171459997,-400.0,0.0003589,8]
[383905184,1757171460007,-400.0,0.0003589,8]
[383905185,1757171460016,-400.0,0.0003589,8]
[383905186,1757171460026,-400.0,0.0003589,8]
[383905187,1757171460038,-401.98489778,0.0003589,8]
[383905188,1757171460049,-400.0,0.0003589,8]
[383905189,1757171460059,-400.0,0.0003589,8]
[383905190,1757171460069,-400.0,0.0003589,8]
[383905191,1757171460079,-400.0,0.0003589,8]
[383905192,1757171460089,-400.0,0.0003589,8]
[383905193,1757171460099,-400.0,0.0003589,8]
[383905194,1757171460109,-400.0,0.0003589,8]
[383905195,1757171460119,-400.0,0.0003589,8]
[383905196,1757171460129,-400.0,0.0003589,8]
[383905197,1757171460139,-576.91,0.0003589,8]
[383905198,1757171460149,-693.34,0.0003589,8]
[383905199,1757171460158,-401.21168329,0.0003589,8]
[383905200,1757171460168,-571.77,0.0003589,8]
[383905201,1757171460178,-455.16,0.0003589,8]
[383905202,1757171460190,-400.0,0.0003589,8]
[383905203,1757171460200,-400.0,0.0003589,8]
[383905204,1757171460210,-400.0,0.0003589,2]
[383905205,1757171460220,-400.0,0.0003589,2]
[383905206,1757171460230,-400.0,0.0003589,8]
[383905207,1757171460241,-400.0,0.0003589,8]
[383905208,1757171460252,-400.0,0.0003589,8]
[383905209,1757171460262,-401.74646323,0.0003589,8]
[383905210,1757171460271,-650.71,0.0003589,8]
[383905211,1757171460280,-400.0,0.0003589,8]
[383905212,1757171460291,-403.0,0.0003589,8]
[383905213,1757171460300,-400.0,0.0003589,8]
[383905214,1757171460310,-400.0,0.0003589,8]
[383905215,1757171460319,-400.0,0.0003589,8]
[383905216,1757171460329,-400.68643074,0.0003589,8]
[383905217,1757171460338,-400.0,0.0003589,8]
[383905218,1757171460347,-400.0,0.0003589,8]
[383905219,1757171460357,-400.0,0.0003589,8]
[383905220,1757171460367,-400.0,0.0003589,8]
[383905221,1757171460376,-400.0,0.0003589,8]
[383905222,1757171460385,-400.0,0.0003589,8]
[383905223,1757171460395,-400.0,0.0003589,8]
[383905224,1757171460404,-400.0,0.0003589,8]
[383905225,1757171460414,-705.36,0.0003589,8]
[383905226,1757171460424,-998.89,0.0003589,8]
[383905227,1757171460433,-400.0,0.0003589,8]
[383905228,1757171460443,-169.86450769,0.0003589,8]
[383905229,1757171460452,-404.17772981,0.0003589,8]
[383905230,1757171460462,-276.39135823,0.0003589,8]
[383905231,1757171460471,-404.06390086,0.0003589,8]
[383905232,1757171460481,-400.0,0.0003589,8]
[383905233,1757171460491,-400.0,0.0003589,8]
[383905234,1757171460501,-400.0,0.0003589,8]
[383905235,1757171460510,-319.54992205,0.0003589,8]
[383905236,1757171460519,-581.35,0.0003589,8]
[383905237,1757171460529,-361.21632518,0.0003589,8]
[383905238,1757171460541,-400.0,0.0003589,8]
[383905239,1757171460550,-400.0,0.0003589,8]
[383905240,1757171460560,-400.0,0.0003589,8]
[383905241,1757171460570,-400.0,0.0003589,8]
[383905242,1757171460580,-400.0,0.0003589,8]
[383905243,1757171460769,-400.0,0.0003589,8]
[383905244,1757171460779,-400.0,0.0003589,8]
[383905245,1757171460789,-400.0,0.0003589,8]
[383905246,1757171460799,-400.0,0.0003589,8]
[383905247,1757171460808,-402.11656628,0.0003589,8]
[383905248,1757171460818,-400.0,0.0003589,8]
[383905249,1757171460828,-400.0,0.0003589,8]
[383905250,1757171460837,-407.23731412,0.0003589,8]
[383905251,1757171460847,-400.0,0.0003589,8]
[383905252,1757171460856,-406.05174561,0.0003589,8]
[383905253,1757171460866,-412.63,0.0003589,8]
[383905254,1757171460875,-400.0,0.0003589,8]
[383905255,1757171460885,-400.0,0.0003589,8]
[383905256,1757171460894,-603.08,0.0003589,8]
[383905257,1757171460904,-400.0,0.0003589,8]
[383905258,1757171460913,-438.63,0.0003589,8]
[383905259,1757171460923,-400.0,0.0003589,8]
[383905260,1757171460933,-400.0,0.0003589,8]
[383905261,1757171460943,-274.22017285,0.0003589,8]
[383905262,1757171460952,-400.0,0.0003589,8]
[383905263,1757171460962,-400.0,0.0003589,8]
[383905264,1757171460971,-400.0,0.0003589,8]
[383905265,1757171460981,-400.0,0.0003589,8]
[383905266,1757171460991,-400.0,0.0003589,8]
[383905267,1757171461000,-401.72911953,0.0003589,8]
[383905268,1757171461010,-400.0,0.0003589,8]
[383905269,1757171461019,-400.0,0.0003589,8]
[383905270,1757171461029,-400.0,0.0003589,8]
[383905271,1757171461038,-400.0,0.0003589,8]
[383905272,1757171461048,-400.0,0.0003589,8]
[383905273,1757171461057,-400.0,0.0003589,8]
[383905274,1757171461067,-400.0,0.0003589,8]
[383905275,1757171461077,-400.0,0.0003589,8]
[383905276,1757171461087,-400.0,0.0003589,8]
[383905277,1757171461096,-400.0,0.0003589,8]
[383905278,1757171461105,-400.0,0.0003589,8]
[383905279,1757171461115,-400.0,0.0003589,8]
[383905280,1757171461125,-400.0,0.0003589,8]
[383905281,1757171461134,-400.0,0.0003589,8]
[383905282,1757171461144,-400.0,0.0003589,8]
[383905283,1757171461153,-407.00404439,0.0003589,8]
[383905284,1757171461163,-400.0,0.0003589,8]
[383905285,1757171461172,-400.0,0.0003589,8]
[383905286,1757171461182,-400.0,0.0003589,8]
[383905287,1757171461191,-400.0,0.0003589,8]
[383905288,1757171461201,-452.6,0.0003589,8]
[383905289,1757171461210,-210.49345412,0.0003589,8]
[383905290,1757171461219,-400.0,0.0003589,8]
[383905291,1757171461229,-400.0,0.0003589,8]
[383905292,1757171461239,-400.0,0.0003589,8]
[383905293,1757171461248,-400.0,0.0003589,8]
[383905294,1757171461258,-1283.92,0.0003589,8]
[383905295,1757171461267,-400.0,0.0003589,8]
[383905296,1757171461276,-400.0,0.0003589,8]
[383905297,1757171461285,-400.0,0.0003589,8]
[383905298,1757171461295,-403.00165426,0.0003589,8]
[383905299,1757171461305,-1004.09366842,0.0003589,8]
[383905300,1757171461314,-579.45,0.0003589,8]
[383905301,1757171461324,-406.5266328,0.0003589,8]
[383905302,1757171461334,-405.71561263,0.0003589,8]
[383905303,1757171461343,-651.77,0.0003589,8]
[383905304,1757171461352,-400.0,0.0003589,8]
[383905305,1757171461362,-400.0,0.0003589,8]
[383905306,1757171461371,-400.0,0.0003589,8]
[383905307,1757171461380,-400.0,0.0003589,8]
[383905308,1757171461390,-400.0,0.0003589,8]
[383905309,1757171461399,-400.0,0.0003589,8]
[383905310,1757171461408,-400.0,0.0003589,8]
[383905311,1757171461418,-418.8297628,0.0003589,8]
[383905312,1757171461427,-403.57424039,0.0003589,8]
[383905313,1757171461436,-400.0,0.0003589,8]
[383905314,1757171461446,-404.94386401,0.0003589,7]
[383905315,1757171461455,-400.0,0.0003589,8]
[383905316,1757171461465,-490.29,0.0003589,8]
[383905317,1757171461475,-400.0,0.0003589,8]
[383905318,1757171461484,-400.0,0.0003589,8]
[383905319,1757171461494,-400.0,0.0003589,8]
[383905320,1757171461504,-400.0,0.0003589,8]
[383905321,1757171461513,-400.0,0.0003589,8]
[383905322,1757171461523,-400.0,0.0003589,8]
[383905323,1757171461534,-400.0,0.0003589,8]
[383905324,1757171461544,-400.0,0.0003589,8]
[383905325,1757171461554,-400.0,0.0003589,8]
[383905326,1757171461564,-400.0,0.0003589,8]
[383905327,1757171461576,-400.0,0.0003589,8]
[383905328,1757171461587,-400.0,0.0003589,8]
[383905329,1757171461596,-400.0,0.0003589,8]
[383905330,1757171461607,-400.0,0.0003589,8]
[383905331,1757171461616,-400.0,0.0003589,8]
[383905332,1757171461626,-400.0,0.0003589,8]
[383905333,1757171461636,-400.0,0.0003589,8]
[383905334,1757171461647,-400.0,0.0003589,8]
[383905335,1757171461657,-407.82306103,0.0003589,8]
[383905336,1757171461667,-513.66,0.0003589,8]
[383905337,1757171461677,-400.0,0.0003589,8]
[383905338,1757171461687,-400.0,0.0003589,8]
[383905339,1757171461698,-675.35,0.0003589,8]
[383905340,1757171461708,-400.0,0.0003589,8]
[383905341,1757171461717,-400.0,0.0003589,8]
[383905342,1757171461727,-400.0,0.0003589,8]
[383905343,1757171461737,-400.0,0.0003589,8]
[383905344,1757171461747,-400.0,0.0003589,8]
[383905345,1757171461756,-400.0,0.0003589,8]
[383905346,1757171461766,-403.85352991,0.0003589,8]
[383905347,1757171461776,-400.0,0.0003589,8]
[383905348,1757171461785,-400.0,0.0003589,8]
[383905349,1757171461795,-400.0,0.0003589,8]
[383905350,1757171461805,-546.31,0.0003589,8]
[383905351,1757171461815,-400.0,0.0003589,8]
[383905352,1757171461827,-403.04534563,0.0003589,8]
[383905353,1757171461836,-400.0,0.0003589,8]
[383905354,1757171461845,-400.0,0.0003589,8]
[383905355,1757171461855,-400.0,0.0003589,8]
[383905356,1757171461864,-400.0,0.0003589,8]
[383905357,1757171461874,-403.53860268,0.0003589,8]
[383905358,1757171461883,-559.97,0.0003589,8]
[383905359,1757171461892,-400.0,0.0003589,8]
[383905360,1757171461902,-533.20865622,0.0003589,8]
[383905361,1757171461911,-408.07,0.0003589,8]
[383905362,1757171461920,-400.0,0.0003589,8]
[383905363,1757171461930,-400.0,0.0003589,8]
[383905364,1757171461940,-400.0,0.0003589,8]
[383905365,1757171461950,-928.94,0.0003589,8]
[383905366,1757171461959,-400.0,0.0003589,8]
[383905367,1757171461969,-440.94,0.0003589,8]
[383905368,1757171461980,-499.33,0.0003589,8]
[383905369,1757171461990,-495.94,0.0003589,8]
[383905370,1757171462000,-402.75563921,0.0003589,8]
[383905371,1757171462011,-400.0,0.0003589,8]
[383905372,1757171462021,-400.0,0.0003589,8]
[383905373,1757171462031,-400.0,0.0003589,8]
[383905374,1757171462041,-517.48015232,0.0003589,8]
[383905375,1757171462050,-400.0,0.0003589,8]
[383905376,1757171462060,-400.0,0.0003589,8]
[383905377,1757171462071,-400.0,0.0003589,8]
[383905378,1757171462080,-402.63700982,0.0003589,8]
[383905379,1757171462090,-400.0,0.0003589,8]
[383905380,1757171462100,-400.0,0.0003589,8]
[383905381,1757171462111,-400.0,0.0003589,8]
[383905382,1757171462121,-400.0,0.0003589,8]
[383905383,1757171462130,-400.0,0.0003589,8]
[383905384,1757171462140,-400.0,0.0003589,8]
[383905385,1757171462150,-400.0,0.0003589,8]
[383905386,1757171462160,-402.27438601,0.0003589,8]
[383905387,1757171462170,-400.0,0.0003589,8]
[383905388,1757171462179,-400.0,0.0003589,8]
[383905389,1757171462189,-402.51467028,0.0003589,8]
[383905390,1757171462198,-400.0,0.0003589,8]
[383905391,1757171462208,-400.0,0.0003589,8]
[383905392,1757171462219,-400.0,0.0003589,8]
[383905393,1757171462229,-400.0,0.0003589,8]
[383905394,1757171462240,-400.0,0.0003589,8]
[383905395,1757171462250,-430.5154152,0.0003589,8]
[383905396,1757171462259,-400.0,0.0003589,8]
[383905397,1757171462269,-400.0,0.0003589,8]
[383905398,1757171462279,-400.0,0.0003589,8]
[383905399,1757171462288,-400.0,0.0003589,8]
[383905400,1757171462298,-400.0,0.0003589,8]
[383905401,1757171462308,-766.11,0.0003589,8]
[383905402,1757171462317,-400.0,0.0003589,8]
[383905403,1757171462327,-404.62443882,0.0003589,8]
[383905404,1757171462337,-400.0,0.0003589,8]
[383905405,1757171462347,-400.0,0.0003589,8]
[383905406,1757171462356,-400.87111914,0.0003589,8]
[383905407,1757171462366,-400.0,0.0003589,8]
[383905408,1757171462375,-471.11980606,0.0003589,8]
[383905409,1757171462384,-400.0,0.0003589,8]
[383905410,1757171462394,-442.65,0.0003589,8]
[383905411,1757171462403,-400.0,0.0003589,8]
[383905412,1757171462414,-400.0,0.0003589,8]
[383905413,1757171462424,-400.0,0.0003589,8]
[383905414,1757171462436,-400.0,0.0003589,8]
[383905415,1757171462445,-400.0,0.0003589,8]
[383905416,1757171462455,-400.0,0.0003589,8]
[383905417,1757171462464,-400.0,0.0003589,8]
[383905418,1757171462474,-400.0,0.0003589,8]
[383905419,1757171462484,-410.17,0.0003589,8]
[383905420,1757171462493,-400.0,0.0003589,8]
[383905421,1757171462503,-400.0,0.0003589,8]
[383905422,1757171462515,-400.0,0.0003589,8]
[383905423,1757171462524,-535.64,0.0003589,8]
[383905424,1757171462537,-406.77618177,0.0003589,8]
[383905425,1757171462547,-403.11128901,0.0003589,8]
[383905426,1757171462556,-400.0,0.0003589,8]
[383905427,1757171462567,-400.0,0.0003589,8]
[383905428,1757171462577,-400.0,0.0003589,8]
[383905429,1757171462587,-400.0,0.0003589,8]
[383905430,1757171462596,-400.0,0.0003589,8]
[383905431,1757171462605,-400.0,0.0003589,8]
[383905432,1757171462619,-400.0,0.0003589,8]
[383905433,1757171462629,-400.0,0.0003589,8]
[383905434,1757171462639,-400.0,0.0003589,8]
[383905435,1757171462649,-400.0,0.0003589,8]
[383905436,1757171462658,-400.0,0.0003589,8]
[383905437,1757171462668,-400.0,0.0003589,8]
[383905438,1757171462677,-400.0,0.0003589,8]
[383905439,1757171462686,-400.0,0.0003589,8]
[383905440,1757171462696,-400.0,0.0003589,8]
[383905441,1757171462706,-400.0,0.0003589,8]
[383905442,1757171462717,-400.0,0.0003589,8]
[383905443,1757171462727,-432.64,0.0003589,8]
[383905444,1757171462737,-430.22,0.0003589,8]
[383905445,1757171462746,-400.0,0.0003589,8]
[383905446,1757171462757,-400.0,0.0003589,8]
[383905447,1757171462766,-400.0,0.0003589,8]
[383905448,1757171462776,-653.85,0.0003589,8]
[383905449,1757171462785,-400.0,0.0003589,8]
[383905450,1757171462794,-400.0,0.0003589,8]
[383905451,1757171462804,-400.0,0.0003589,8]
[383905452,1757171462813,-400.0,0.0003589,8]
[383905453,1757171462824,-400.0,0.0003589,8]